Workbook

Sheet Hourly
E2: =SUM(DATES) -> 7105654.5
C4: Altha | D4: Blountstown | E4: Caverns | F4: Chipola | G4: Marianna 1 | H4: Marianna 2 | I4: Total
A5: 2012-01-01T01:00:00 | B5: 40909.04167 | C5: 1353.225 | D5: 1625.925 | E5: 3814.6 | F5: 8796.6 | G5: 7903.45 | H5: 363.975 | I5: =SUM(C5:H5) -> 23857.775
A6: =A5+TIME(1,0,0) -> 2012-01-01T02:00:00 | B6: =B5+TIME(1,0,0) -> 40909.08333 | C6: 1297.1 | D6: 1568.425 | E6: 3632.05 | F6: 8305.2 | G6: 7624.8 | H6: 357.475 | I6: =SUM(C6:H6) -> 22785.05
A7: =A6+TIME(1,0,0) -> 2012-01-01T03:00:00 | B7: 40909.125 | C7: 1211.775 | D7: 1510.125 | E7: 3465.725 | F7: 8062.2 | G7: 7382.875 | H7: 360.75 | I7: 21993.45
A8: 2012-01-01T04:00:00 | B8: 40909.16667 | C8: 1210.7 | D8: 1570.575 | E8: 3425.775 | F8: 7911 | G8: 7175.525 | H8: 359.65 | I8: 21653.225
A9: 2012-01-01T05:00:00 | B9: 40909.20833 | C9: 1232.275 | D9: 1668.85 | E9: 3472.225 | F9: 8100 | G9: 7363.425 | H9: 358.55 | I9: 22195.325
A10: 2012-01-01T06:00:00 | B10: 40909.25 | C10: 1400.775 | D10: 1756.625 | E10: 3547.8 | F10: 8348.4 | G10: 7542.725 | H10: 358.55 | I10: 22954.875
A11: 2012-01-01T07:00:00 | B11: 40909.29167 | C11: 1569.225 | D11: 1837.9 | E11: 3696.85 | F11: 8607.6 | G11: 7700.4 | H11: 358.55 | I11: 23770.525
A12: 2012-01-01T08:00:00 | B12: 40909.33333 | C12: 1669.675 | D12: 1969.9 | E12: 3882.6 | F12: 8872.2 | G12: 7832.15 | H12: 336.975 | I12: 24563.5
A13: 2012-01-01T09:00:00 | B13: 40909.375 | C13: 1663.2 | D13: 2145.15 | E13: 4253.05 | F13: 9795.6 | G13: 8503.925 | H13: 336.975 | I13: 26697.9
A14: 2012-01-01T10:00:00 | B14: 40909.41667 | C14: 1540.075 | D14: 2081.975 | E14: 4309.2 | F14: 10395 | G14: 8879.75 | H14: 346.65 | I14: 27552.65
A15: 2012-01-01T11:00:00 | B15: 40909.45833 | C15: 1539 | D15: 1969.375 | E15: 4190.4 | F15: 10270.8 | G15: 8605.45 | H15: 355.325 | I15: 26930.35
A16: 2012-01-01T12:00:00 | B16: 40909.5 | C16: 1571.375 | D16: 1919.7 | E16: 4281.125 | F16: 10351.8 | G16: 8726.4 | H16: 345.6 | I16: 27196
A17: 2012-01-01T13:00:00 | B17: 40909.54167 | C17: 1545.475 | D17: 1884.6 | E17: 4174.2 | F17: 10665 | G17: 8732.875 | H17: 354.225 | I17: 27356.375
A18: 2012-01-01T14:00:00 | B18: 40909.58333 | C18: 1476.375 | D18: 1838.7 | E18: 4039.2 | F18: 10476 | G18: 8618.4 | H18: 326.15 | I18: 26774.825
A19: 2012-01-01T15:00:00 | B19: 40909.625 | C19: 1453.675 | D19: 1745 | E19: 3989.525 | F19: 10287 | G19: 8519.05 | H19: 331.575 | I19: 26325.825
A20: 2012-01-01T16:00:00 | B20: 40909.66667 | C20: 1529.3 | D20: 1709.625 | E20: 3957.125 | F20: 10308.6 | G20: 8309.5 | H20: 345.575 | I20: 26159.725
A21: 2012-01-01T17:00:00 | B21: 40909.70833 | C21: 1771.225 | D21: 1789.825 | E21: 4031.65 | F21: 10864.8 | G21: 8510.4 | H21: 374.775 | I21: 27342.675
A22: 2012-01-01T18:00:00 | B22: 40909.75 | C22: 1936.45 | D22: 1993.4 | E22: 4420.475 | F22: 12393 | G22: 9620.65 | H22: 388.8 | I22: 30752.775
A23: 2012-01-01T19:00:00 | B23: 40909.79167 | C23: 1932.1 | D23: 2016.35 | E23: 4466.9 | F23: 12058.2 | G23: 9659.5 | H23: 395.25 | I23: 30528.3
A24: 2012-01-01T20:00:00 | B24: 40909.83333 | C24: 1809 | D24: 1976.425 | E24: 4382.625 | F24: 11502 | G24: 9393.85 | H24: 383.4 | I24: 29447.3
A25: 2012-01-01T21:00:00 | B25: 40909.875 | C25: 1640.55 | D25: 1843.825 | E25: 4159.1 | F25: 10805.4 | G25: 9005.05 | H25: 373.675 | I25: 27827.6
A26: 2012-01-01T22:00:00 | B26: 40909.91667 | C26: 1421.275 | D26: 1705.05 | E26: 4050 | F26: 10119.6 | G26: 8691.825 | H26: 365.05 | I26: 26352.8
A27: 2012-01-01T23:00:00 | B27: 40909.95833 | C27: 1301.375 | D27: 1559.775 | E27: 3829.65 | F27: 9282.6 | G27: 8208.025 | H27: 373.675 | I27: 24555.1
A28: 2012-01-02 | B28: 40910 | C28: 1179.35 | D28: 1444.525 | E28: 3672 | F28: 8656.2 | G28: 7704.725 | H28: 367.175 | I28: 23023.975
A29: 2012-01-02T01:00:00 | B29: 40910.04167 | C29: 1161 | D29: 1425.325 | E29: 3652.575 | F29: 8359.2 | G29: 7575.1 | H29: 368.3 | I29: 22541.5
A30: 2012-01-02T02:00:00 | B30: 40910.08333 | C30: 1165.325 | D30: 1434.25 | E30: 3560.75 | F30: 8137.8 | G30: 7454.15 | H30: 360.725 | I30: 22113
A31: 2012-01-02T03:00:00 | B31: 40910.125 | C31: 1199.875 | D31: 1498.225 | E31: 3641.8 | F31: 8181 | G31: 7605.35 | H31: 359.675 | I31: 22485.925
A32: 2012-01-02T04:00:00 | B32: 40910.16667 | C32: 1296 | D32: 1604.325 | E32: 3721.675 | F32: 8672.4 | G32: 8000.65 | H32: 358.55 | I32: 23653.6
A33: 2012-01-02T05:00:00 | B33: 40910.20833 | C33: 1428.825 | D33: 1820.075 | E33: 3921.45 | F33: 9061.2 | G33: 8795.525 | H33: 367.2 | I33: 25394.275
A34: 2012-01-02T06:00:00 | B34: 40910.25 | C34: 1765.775 | D34: 2071.975 | E34: 4512.25 | F34: 10211.4 | G34: 10277.275 | H34: 378 | I34: 29216.675
A35: 2012-01-02T07:00:00 | B35: 40910.29167 | C35: 2232.35 | D35: 2295.025 | E35: 4944.225 | F35: 11383.2 | G35: 10962 | H35: 376.95 | I35: 32193.75
A36: 2012-01-02T08:00:00 | B36: 40910.33333 | C36: 2343.6 | D36: 2449.975 | E36: 5228.275 | F36: 12123 | G36: 11815.2 | H36: 343.45 | I36: 34303.5
A37: 2012-01-02T09:00:00 | B37: 40910.375 | C37: 2327.4 | D37: 2579.025 | E37: 5424.825 | F37: 13737.6 | G37: 12378.95 | H37: 354.25 | I37: 36802.05
A38: 2012-01-02T10:00:00 | B38: 40910.41667 | C38: 2283.1 | D38: 2532.875 | E38: 5412.95 | F38: 14040 | G38: 12700.8 | H38: 357.475 | I38: 37327.2
A39: 2012-01-02T11:00:00 | B39: 40910.45833 | C39: 2243.15 | D39: 2549.05 | E39: 5241.275 | F39: 13964.4 | G39: 12147.825 | H39: 359.625 | I39: 36505.325
A40: 2012-01-02T12:00:00 | B40: 40910.5 | C40: 2104.95 | D40: 2455.65 | E40: 5034.95 | F40: 13656.6 | G40: 11942.625 | H40: 356.425 | I40: 35551.2
A41: 2012-01-02T13:00:00 | B41: 40910.54167 | C41: 2112.5 | D41: 2388.7 | E41: 4989.6 | F41: 13651.2 | G41: 11618.65 | H41: 356.4 | I41: 35117.05
A42: 2012-01-02T14:00:00 | B42: 40910.58333 | C42: 2118.95 | D42: 2297.175 | E42: 5181.85 | F42: 13105.8 | G42: 11115.35 | H42: 360.725 | I42: 34179.85
A43: 2012-01-02T15:00:00 | B43: 40910.625 | C43: 1807.925 | D43: 2177.825 | E43: 5201.25 | F43: 12808.8 | G43: 10836.7 | H43: 376.95 | I43: 33209.45
A44: 2012-01-02T16:00:00 | B44: 40910.66667 | C44: 1879.2 | D44: 2282.6 | E44: 5247.75 | F44: 13219.2 | G44: 10879.925 | H44: 371.525 | I44: 33880.2
A45: 2012-01-02T17:00:00 | B45: 40910.70833 | C45: 2340.35 | D45: 2513.975 | E45: 5668.925 | F45: 13824 | G45: 11955.6 | H45: 382.325 | I45: 36685.175
A46: 2012-01-02T18:00:00 | B46: 40910.75 | C46: 2681.625 | D46: 3025.35 | E46: 6608.525 | F46: 15751.8 | G46: 14413.675 | H46: 396.375 | I46: 42877.35
A47: 2012-01-02T19:00:00 | B47: 40910.79167 | C47: 2910.6 | D47: 3204.625 | E47: 6859.1 | F47: 16129.8 | G47: 14919.1 | H47: 501.1 | I47: 44524.325
A48: 2012-01-02T20:00:00 | B48: 40910.83333 | C48: 2856.6 | D48: 3237.3 | E48: 6899.05 | F48: 16416 | G48: 14847.875 | H48: 1131.825 | I48: 45388.65
A49: 2012-01-02T21:00:00 | B49: 40910.875 | C49: 2786.425 | D49: 3138.45 | E49: 6710.025 | F49: 16173 | G49: 14675.05 | H49: 1287.35 | I49: 44770.3
A50: 2012-01-02T22:00:00 | B50: 40910.91667 | C50: 2555.3 | D50: 2975.4 | E50: 6367.675 | F50: 15584.4 | G50: 14342.4 | H50: 1299.225 | I50: 43124.4
A51: 2012-01-02T23:00:00 | B51: 40910.95833 | C51: 2506.675 | D51: 2982.425 | E51: 5897.875 | F51: 14650.2 | G51: 13906.1 | H51: 1355.4 | I51: 41298.675
A52: 2012-01-03 | B52: 40911 | C52: 2438.65 | D52: 2815.8 | E52: 5990.75 | F52: 12376.8 | G52: 13398.5 | H52: 1360.8 | I52: 38381.3
A53: 2012-01-03T01:00:00 | B53: 40911.04167 | C53: 2466.7 | D53: 2821.775 | E53: 6249.95 | F53: 11140.2 | G53: 13446.025 | H53: 1352.175 | I53: 37476.825
A54: 2012-01-03T02:00:00 | B54: 40911.08333 | C54: 2530.425 | D54: 2854.725 | E54: 6198.1 | F54: 11269.8 | G54: 13448.15 | H54: 1321.925 | I54: 37623.125
A55: 2012-01-03T03:00:00 | B55: 40911.125 | C55: 2560.675 | D55: 3038.3 | E55: 6225.125 | F55: 13726.8 | G55: 13569.125 | H55: 1333.825 | I55: 40453.85
A56: 2012-01-03T04:00:00 | B56: 40911.16667 | C56: 2751.85 | D56: 3210.025 | E56: 6355.775 | F56: 15417 | G56: 14163.125 | H56: 1335.95 | I56: 43233.725
A57: 2012-01-03T05:00:00 | B57: 40911.20833 | C57: 3106.075 | D57: 3611.525 | E57: 6726.225 | F57: 15994.8 | G57: 15374.875 | H57: 1315.475 | I57: 46128.975
A58: 2012-01-03T06:00:00 | B58: 40911.25 | C58: 3437.625 | D58: 3833.2 | E58: 7764.125 | F58: 18343.8 | G58: 17489.525 | H58: 1353.25 | I58: 52221.525
A59: 2012-01-03T07:00:00 | B59: 40911.29167 | C59: 3797.275 | D59: 4236.55 | E59: 8283.6 | F59: 20347.2 | G59: 18804.95 | H59: 1331.625 | I59: 56801.2
A60: 2012-01-03T08:00:00 | B60: 40911.33333 | C60: 3931.2 | D60: 4316.225 | E60: 8513.625 | F60: 21319.2 | G60: 19353.625 | H60: 1360.8 | I60: 58794.675
A61: 2012-01-03T09:00:00 | B61: 40911.375 | C61: 3559.675 | D61: 4201.775 | E61: 8526.6 | F61: 21427.2 | G61: 18757.425 | H61: 1439.625 | I61: 57912.3
A62: 2012-01-03T10:00:00 | B62: 40911.41667 | C62: 3403.075 | D62: 3896.35 | E62: 8154 | F62: 20671.2 | G62: 17882.625 | H62: 1419.125 | I62: 55426.375
A63: 2012-01-03T11:00:00 | B63: 40911.45833 | C63: 2951.65 | D63: 3632.325 | E63: 7891.575 | F63: 19612.8 | G63: 16819.925 | H63: 1434.25 | I63: 52342.525
A64: 2012-01-03T12:00:00 | B64: 40911.5 | C64: 2646 | D64: 3409 | E64: 7403.4 | F64: 18640.8 | G64: 16115.775 | H64: 1451.5 | I64: 49666.475
A65: 2012-01-03T13:00:00 | B65: 40911.54167 | C65: 2522.875 | D65: 3144.425 | E65: 7134.475 | F65: 16896.6 | G65: 15456.975 | H65: 1415.875 | I65: 46571.225
A66: 2012-01-03T14:00:00 | B66: 40911.58333 | C66: 2386.775 | D66: 3005.9 | E66: 6590.15 | F66: 16227 | G66: 14601.6 | H66: 1422.35 | I66: 44233.775
A67: 2012-01-03T15:00:00 | B67: 40911.625 | C67: 2433.25 | D67: 2876.325 | E67: 6586.95 | F67: 15654.6 | G67: 14214.95 | H67: 1409.4 | I67: 43175.475
A68: 2012-01-03T16:00:00 | B68: 40911.66667 | C68: 2477.55 | D68: 2959.2 | E68: 6502.675 | F68: 16561.8 | G68: 14495.75 | H68: 1408.325 | I68: 44405.3
A69: 2012-01-03T17:00:00 | B69: 40911.70833 | C69: 2980.825 | D69: 3227.575 | E69: 6660.35 | F69: 17884.8 | G69: 15685.925 | H69: 1422.375 | I69: 47861.85
A70: 2012-01-03T18:00:00 | B70: 40911.75 | C70: 3570.475 | D70: 3881.775 | E70: 7493.025 | F70: 19683 | G70: 17893.45 | H70: 1368.375 | I70: =SUM(C70:H70) -> 53890.1
A71: =A70+TIME(1,0,0) -> 2012-01-03T19:00:00 | B71: 40911.79167 | C71: 3669.85 | D71: 4186.35 | E71: 7873.2 | F71: 20320.2 | G71: 18858.925 | H71: 1374.825 | I71: 56283.35
A72: 2012-01-03T20:00:00 | B72: 40911.83333 | C72: 3748.675 | D72: 4251.425 | E72: 7989.825 | F72: 20228.4 | G72: 19018.8 | H72: 1362.95 | I72: 56600.075
A73: 2012-01-03T21:00:00 | B73: 40911.875 | C73: 3668.75 | D73: 4181.475 | E73: 7965.025 | F73: 20098.8 | G73: 18817.9 | H73: 1292.775 | I73: 56024.725
A74: 2012-01-03T22:00:00 | B74: 40911.91667 | C74: 3351.25 | D74: 4095.65 | E74: 7852.7 | F74: 19283.4 | G74: 18496.1 | H74: 1360.8 | I74: 54439.9
A75: 2012-01-03T23:00:00 | B75: 40911.95833 | C75: 3276.7 | D75: 4002.475 | E75: 7610.75 | F75: 18149.4 | G75: 17956.05 | H75: 1313.275 | I75: 52308.65
A76: 2012-01-04 | B76: 40912 | C76: 3189.25 | D76: 4040.275 | E76: 7527.6 | F76: 17728.2 | G76: 17651.525 | H76: 1305.725 | I76: 51442.575
A77: 2012-01-04T01:00:00 | B77: 40912.04167 | C77: 3300.475 | D77: 4006 | E77: 7664.75 | F77: 17722.8 | G77: 17593.2 | H77: 1338.125 | I77: 51625.35
A78: 2012-01-04T02:00:00 | B78: 40912.08333 | C78: 3328.55 | D78: 4111.3 | E78: 7788.95 | F78: 18154.8 | G78: 17703.375 | H78: 1328.375 | I78: 52415.35
A79: 2012-01-04T03:00:00 | B79: 40912.125 | C79: 3418.2 | D79: 4255.775 | E79: 7930.45 | F79: 18657 | G79: 18314.625 | H79: 1347.825 | I79: 53923.875
A80: 2012-01-04T04:00:00 | B80: 40912.16667 | C80: 3539.15 | D80: 4499.55 | E80: 8083.775 | F80: 19407.6 | G80: 18880.55 | H80: 1340.3 | I80: 55750.925
A81: 2012-01-04T05:00:00 | B81: 40912.20833 | C81: 3706.575 | D81: 4856.75 | E81: 8487.75 | F81: 20574 | G81: 20021.05 | H81: 1291.675 | I81: 58937.8
A82: 2012-01-04T06:00:00 | B82: 40912.25 | C82: 4044.6 | D82: 5260.425 | E82: 9473.75 | F82: 23295.6 | G82: 22306.3 | H82: 1327.3 | I82: 65707.975
A83: 2012-01-04T07:00:00 | B83: 40912.29167 | C83: 4591.075 | D83: 5376.8 | E83: 10317.225 | F83: 25444.8 | G83: 23565.6 | H83: 1347.85 | I83: 70643.35
A84: 2012-01-04T08:00:00 | B84: 40912.33333 | C84: 4533.825 | D84: 5300.925 | E84: 10343.175 | F84: 25817.4 | G84: 23302.075 | H84: 1339.175 | I84: 70636.575
A85: 2012-01-04T09:00:00 | B85: 40912.375 | C85: 3840.475 | D85: 4834.375 | E85: 9536.4 | F85: 24165 | G85: 21677.75 | H85: 1397.525 | I85: 65451.525
A86: 2012-01-04T10:00:00 | B86: 40912.41667 | C86: 3279.975 | D86: 4198.225 | E86: 8633.525 | F86: 22091.4 | G86: 19349.275 | H86: 1358.625 | I86: 58911.025
A87: 2012-01-04T11:00:00 | B87: 40912.45833 | C87: 2954.875 | D87: 3644.2 | E87: 7765.2 | F87: 20071.8 | G87: 17353.425 | H87: 1400.75 | I87: 53190.25
A88: 2012-01-04T12:00:00 | B88: 40912.5 | C88: 2665.45 | D88: 3234.075 | E88: 7133.4 | F88: 18387 | G88: 15973.2 | H88: 1402.925 | I88: 48796.05
A89: 2012-01-04T13:00:00 | B89: 40912.54167 | C89: 2493.725 | D89: 2864.7 | E89: 6691.65 | F89: 16923.6 | G89: 14703.125 | H89: 1353.25 | I89: 45030.05
A90: 2012-01-04T14:00:00 | B90: 40912.58333 | C90: 2222.65 | D90: 2707 | E90: 6410.9 | F90: 16297.2 | G90: 13605.85 | H90: 1380.25 | I90: 42623.85
A91: 2012-01-04T15:00:00 | B91: 40912.625 | C91: 2145.95 | D91: 2567.7 | E91: 5997.25 | F91: 15562.8 | G91: 12800.175 | H91: 1382.4 | I91: 40456.275
A92: 2012-01-04T16:00:00 | B92: 40912.66667 | C92: 2130.85 | D92: 2550.15 | E92: 5736.95 | F92: 15535.8 | G92: 12640.3 | H92: 1380.25 | I92: 39974.3
A93: 2012-01-04T17:00:00 | B93: 40912.70833 | C93: 2455.925 | D93: 2771 | E93: 5928.1 | F93: 16248.6 | G93: 13383.35 | H93: 1382.425 | I93: 42169.4
A94: 2012-01-04T18:00:00 | B94: 40912.75 | C94: 2889 | D94: 3303.425 | E94: 6851.5 | F94: 17841.6 | G94: 15351.1 | H94: 1375.925 | I94: 47612.55
A95: 2012-01-04T19:00:00 | B95: 40912.79167 | C95: 2934.375 | D95: 3546.7 | E95: 7221.95 | F95: 18019.8 | G95: 16174.075 | H95: 1392.125 | I95: 49289.025
A96: 2012-01-04T20:00:00 | B96: 40912.83333 | C96: 3004.575 | D96: 3498.95 | E96: 7172.275 | F96: 18154.8 | G96: 16327.45 | H96: 1372.675 | I96: 49530.725
A97: 2012-01-04T21:00:00 | B97: 40912.875 | C97: 2920.325 | D97: 3565.075 | E97: 6964.925 | F97: 17825.4 | G97: 15988.325 | H97: 1312.175 | I97: 48576.225
A98: 2012-01-04T22:00:00 | B98: 40912.91667 | C98: 2679.5 | D98: 3291.025 | E98: 6754.325 | F98: 16880.4 | G98: 15407.275 | H98: 1397.525 | I98: 46410.05
A99: 2012-01-04T23:00:00 | B99: 40912.95833 | C99: 2457 | D99: 3199.225 | E99: 6445.425 | F99: 15876 | G99: 14502.25 | H99: 1328.4 | I99: 43808.3
A100: 2012-01-05 | B100: 40913 | C100: 2359.8 | D100: 3131.75 | E100: 6319.1 | F100: 14860.8 | G100: 13761.375 | H100: 1375.95 | I100: 41808.775
A101: 2012-01-05T01:00:00 | B101: 40913.04167 | C101: 2322 | D101: 3123.325 | E101: 6106.35 | F101: 14423.4 | G101: 13426.575 | H101: 1392.15 | I101: 40793.8
A102: 2012-01-05T02:00:00 | B102: 40913.08333 | C102: 2360.9 | D102: 3175.475 | E102: 6100.9 | F102: 14472 | G102: 13309.9 | H102: 1335.95 | I102: 40755.125
A103: 2012-01-05T03:00:00 | B103: 40913.125 | C103: 2394.375 | D103: 3193.025 | E103: 6154.925 | F103: 14612.4 | G103: 13417.9 | H103: 1326.25 | I103: 41098.875
A104: 2012-01-05T04:00:00 | B104: 40913.16667 | C104: 2468.875 | D104: 3277 | E104: 6347.15 | F104: 15028.2 | G104: 13884.475 | H104: 1346.75 | I104: 42352.45
A105: 2012-01-05T05:00:00 | B105: 40913.20833 | C105: 2557.45 | D105: 3527.55 | E105: 6586.9 | F105: 15924.6 | G105: 14562.7 | H105: 1318.675 | I105: 44477.875
A106: 2012-01-05T06:00:00 | B106: 40913.25 | C106: 2979.725 | D106: 3738.7 | E106: 7468.2 | F106: 17971.2 | G106: 16493.75 | H106: 1345.65 | I106: 49997.225
A107: 2012-01-05T07:00:00 | B107: 40913.29167 | C107: 3502.45 | D107: 3768.15 | E107: 7871.075 | F107: 19456.2 | G107: 17202.25 | H107: 1352.175 | I107: 53152.3
A108: 2012-01-05T08:00:00 | B108: 40913.33333 | C108: 3217.3 | D108: 3565.9 | E108: 7664.75 | F108: 18673.2 | G108: 15999.125 | H108: 1367.25 | I108: 50487.525
A109: 2012-01-05T09:00:00 | B109: 40913.375 | C109: 2631.975 | D109: 3201.4 | E109: 7245.725 | F109: 17290.8 | G109: 14629.675 | H109: 1383.475 | I109: 46383.05
A110: 2012-01-05T10:00:00 | B110: 40913.41667 | C110: 2369.525 | D110: 2835.525 | E110: 6739.2 | F110: 16281 | G110: 13147.925 | H110: 1374.85 | I110: 42748.025
A111: 2012-01-05T11:00:00 | B111: 40913.45833 | C111: 2040.125 | D111: 2532.075 | E111: 6448.675 | F111: 15120 | G111: 11977.2 | H111: 1422.35 | I111: 39540.425
A112: 2012-01-05T12:00:00 | B112: 40913.5 | C112: 1915.925 | D112: 2325.225 | E112: 5784.45 | F112: 14477.4 | G112: 11426.375 | H112: 1441.825 | I112: 37371.2
A113: 2012-01-05T13:00:00 | B113: 40913.54167 | C113: 1726.925 | D113: 2191.85 | E113: 5584.675 | F113: 13689 | G113: 10659.6 | H113: 1384.55 | I113: 35236.6
A114: 2012-01-05T14:00:00 | B114: 40913.58333 | C114: 1634.05 | D114: 2085.75 | E114: 5456.175 | F114: 13446 | G114: 10305.35 | H114: 1442.875 | I114: 34370.2
A115: 2012-01-05T15:00:00 | B115: 40913.625 | C115: 1522.8 | D115: 1941.3 | E115: 5176.45 | F115: 13478.4 | G115: 9825.825 | H115: 1406.15 | I115: 33350.925
A116: 2012-01-05T16:00:00 | B116: 40913.66667 | C116: 1533.625 | D116: 1917.55 | E116: 5054.4 | F116: 13419 | G116: 9538.575 | H116: 1386.75 | I116: 32849.9
A117: 2012-01-05T17:00:00 | B117: 40913.70833 | C117: 1825.2 | D117: 2049.85 | E117: 4961.525 | F117: 13802.4 | G117: 10024.575 | H117: 1388.875 | I117: 34052.425
A118: 2012-01-05T18:00:00 | B118: 40913.75 | C118: 2125.45 | D118: 2363.325 | E118: 5590.1 | F118: 14650.2 | G118: 11478.25 | H118: 1356.475 | I118: 37563.8
A119: 2012-01-05T19:00:00 | B119: 40913.79167 | C119: 2165.4 | D119: 2525.575 | E119: 5969.175 | F119: 15120 | G119: 12102.475 | H119: 1400.775 | I119: 39283.4
A120: 2012-01-05T20:00:00 | B120: 40913.83333 | C120: 2140.55 | D120: 2547.975 | E120: 5924.875 | F120: 15109.2 | G120: 12236.4 | H120: 1374.825 | I120: 39333.825
A121: 2012-01-05T21:00:00 | B121: 40913.875 | C121: 2098.45 | D121: 2499.675 | E121: 5888.15 | F121: 14812.2 | G121: 11998.825 | H121: 1324.075 | I121: 38621.375
A122: 2012-01-05T22:00:00 | B122: 40913.91667 | C122: 1904.025 | D122: 2380.875 | E122: 5730.475 | F122: 13813.2 | G122: 11681.25 | H122: 1331.65 | I122: 36841.475
A123: 2012-01-05T23:00:00 | B123: 40913.95833 | C123: 1712.875 | D123: 2177.8 | E123: 5415.125 | F123: 12636 | G123: 11046.25 | H123: 1308.95 | I123: 34297
A124: 2012-01-06 | B124: 40914 | C124: 1603.8 | D124: 2059.275 | E124: 5280.125 | F124: 11961 | G124: 10450.075 | H124: 1332.75 | I124: 32687.025
A125: 2012-01-06T01:00:00 | B125: 40914.04167 | C125: 1556.275 | D125: 2091.675 | E125: 5199.125 | F125: 11599.2 | G125: 10154.175 | H125: 1358.65 | I125: 31959.1
A126: 2012-01-06T02:00:00 | B126: 40914.08333 | C126: 1516.325 | D126: 2026.9 | E126: 5036.05 | F126: 11361.6 | G126: 9856.1 | H126: 1340.3 | I126: 31137.275
A127: 2012-01-06T03:00:00 | B127: 40914.125 | C127: 1573.55 | D127: 2010.975 | E127: 4951.775 | F127: 11151 | G127: 9758.875 | H127: 1353.25 | I127: 30799.425
A128: 2012-01-06T04:00:00 | B128: 40914.16667 | C128: 1647 | D128: 2162.425 | E128: 4923.725 | F128: 11556 | G128: 10117.45 | H128: 1352.15 | I128: 31758.75
A129: 2012-01-06T05:00:00 | B129: 40914.20833 | C129: 1778.75 | D129: 2486.7 | E129: 5135.4 | F129: 12236.4 | G129: 10979.275 | H129: 1294.9 | I129: 33911.425
A130: 2012-01-06T06:00:00 | B130: 40914.25 | C130: 2311.225 | D130: 2700.8 | E130: 6040.425 | F130: 14434.2 | G130: 13024.775 | H130: 1375.9 | I130: 39887.325
A131: 2012-01-06T07:00:00 | B131: 40914.29167 | C131: 2849.05 | D131: 2879.85 | E131: 6342.875 | F131: 16475.4 | G131: 14052.975 | H131: 1369.425 | I131: 43969.575
A132: 2012-01-06T08:00:00 | B132: 40914.33333 | C132: 2575.8 | D132: 2847.925 | E132: 6522.125 | F132: 16399.8 | G132: 13776.5 | H132: 1386.7 | I132: 43508.85
A133: 2012-01-06T09:00:00 | B133: 40914.375 | C133: 2352.225 | D133: 2798.025 | E133: 6505.925 | F133: 16405.2 | G133: 13322.875 | H133: 1428.825 | I133: 42813.075
A134: 2012-01-06T10:00:00 | B134: 40914.41667 | C134: 2252.875 | D134: 2518.575 | E134: 6364.45 | F134: 15962.4 | G134: 12538.8 | H134: 1396.425 | I134: =SUM(C134:H134) -> 41033.525
A135: =A134+TIME(1,0,0) -> 2012-01-06T11:00:00 | B135: 40914.45833 | C135: 2041.2 | D135: 2303.625 | E135: 6210 | F135: 14823 | G135: 11188.8 | H135: 1426.7 | I135: 37993.325
A136: 2012-01-06T12:00:00 | B136: 40914.5 | C136: 1824.1 | D136: 2132.2 | E136: 5553.35 | F136: 13748.4 | G136: 10633.7 | H136: 1439.65 | I136: 35331.4
A137: 2012-01-06T13:00:00 | B137: 40914.54167 | C137: 1884.6 | D137: 2028.225 | E137: 5370.825 | F137: 13132.8 | G137: 9998.65 | H137: 1396.425 | I137: 33811.525
A138: 2012-01-06T14:00:00 | B138: 40914.58333 | C138: 1736.65 | D138: 1988.55 | E138: 5370.85 | F138: 12841.2 | G138: 9817.2 | H138: 1419.125 | I138: 33173.575
A139: 2012-01-06T15:00:00 | B139: 40914.625 | C139: 1488.25 | D139: 1826.825 | E139: 5219.65 | F139: 12517.2 | G139: 9478.1 | H139: 1300.325 | I139: 31830.35
A140: 2012-01-06T16:00:00 | B140: 40914.66667 | C140: 1534.65 | D140: 1824.9 | E140: 4969.05 | F140: 12533.4 | G140: 9339.85 | H140: 1401.825 | I140: 31603.675
A141: 2012-01-06T17:00:00 | B141: 40914.70833 | C141: 1788.45 | D141: 1899.425 | E141: 4851.375 | F141: 12652.2 | G141: 9614.15 | H141: 1371.6 | I141: 32177.2
A142: 2012-01-06T18:00:00 | B142: 40914.75 | C142: 1938.6 | D142: 2226.95 | E142: 5373 | F142: 13899.6 | G142: 10735.225 | H142: 1375.95 | I142: 35549.325
A143: 2012-01-06T19:00:00 | B143: 40914.79167 | C143: 2016.375 | D143: 2226.7 | E143: 5486.425 | F143: 13986 | G143: 10845.375 | H143: 1369.425 | I143: 35930.3
A144: 2012-01-06T20:00:00 | B144: 40914.83333 | C144: 1958.05 | D144: 2220.2 | E144: 5396.775 | F144: 13764.6 | G144: 10743.85 | H144: 1344.6 | I144: 35428.075
A145: 2012-01-06T21:00:00 | B145: 40914.875 | C145: 1784.175 | D145: 2144.875 | E145: 5384.875 | F145: 13386.6 | G145: 10534.325 | H145: 1279.8 | I145: 34514.65
A146: 2012-01-06T22:00:00 | B146: 40914.91667 | C146: 1561.675 | D146: 2039.325 | E146: 5325.45 | F146: 12970.8 | G146: 10277.275 | H146: 1276.55 | I146: 33451.075
A147: 2012-01-06T23:00:00 | B147: 40914.95833 | C147: 1480.675 | D147: 1908.625 | E147: 4921.55 | F147: 11896.2 | G147: 9730.775 | H147: 1279.825 | I147: 31217.65
A148: 2012-01-07 | B148: 40915 | C148: 1414.775 | D148: 1860.575 | E148: 4838.4 | F148: 10962 | G148: 9298.8 | H148: 704.15 | I148: 29078.7
A149: 2012-01-07T01:00:00 | B149: 40915.04167 | C149: 1419.125 | D149: 1796.05 | E149: 4656.975 | F149: 10454.4 | G149: 9028.8 | H149: 427.675 | I149: 27783.025
A150: 2012-01-07T02:00:00 | B150: 40915.08333 | C150: 1398.6 | D150: 1864.35 | E150: 4668.85 | F150: 10330.2 | G150: 8847.375 | H150: 409.325 | I150: 27518.7
A151: 2012-01-07T03:00:00 | B151: 40915.125 | C151: 1392.15 | D151: 1846.775 | E151: 4504.7 | F151: 10384.2 | G151: 8901.35 | H151: 380.2 | I151: 27409.375
A152: 2012-01-07T04:00:00 | B152: 40915.16667 | C152: 1482.85 | D152: 1939.7 | E152: 4509.025 | F152: 10513.8 | G152: 9013.675 | H152: 387.7 | I152: 27846.75
A153: 2012-01-07T05:00:00 | B153: 40915.20833 | C153: 1526.05 | D153: 2147.85 | E153: 4662.375 | F153: 10913.4 | G153: 9311.75 | H153: 384.5 | I153: 28945.925
A154: 2012-01-07T06:00:00 | B154: 40915.25 | C154: 1747.425 | D154: 2214.025 | E154: 4968 | F154: 11458.8 | G154: 9784.775 | H154: 548.65 | I154: 30721.675
A155: 2012-01-07T07:00:00 | B155: 40915.29167 | C155: 1985.05 | D155: 2336.575 | E155: 5023.1 | F155: 12236.4 | G155: 10234.075 | H155: 633.95 | I155: 32449.15
A156: 2012-01-07T08:00:00 | B156: 40915.33333 | C156: 2012.05 | D156: 2432.725 | E156: 5375.125 | F156: 12069 | G156: 10912.3 | H156: 729.025 | I156: 33530.225
A157: 2012-01-07T09:00:00 | B157: 40915.375 | C157: 1748.5 | D157: 2417.025 | E157: 5689.45 | F157: 12047.4 | G157: 11229.825 | H157: 731.175 | I157: 33863.375
A158: 2012-01-07T10:00:00 | B158: 40915.41667 | C158: 1654.55 | D158: 2281.775 | E158: 5368.7 | F158: 11885.4 | G158: 10579.7 | H158: 727.9 | I158: 32498.025
A159: 2012-01-07T11:00:00 | B159: 40915.45833 | C159: 1613.525 | D159: 2037.675 | E159: 5047.925 | F159: 11345.4 | G159: 9726.475 | H159: 748.45 | I159: 30519.45
A160: 2012-01-07T12:00:00 | B160: 40915.5 | C160: 1529.25 | D160: 1935.1 | E160: 4753.075 | F160: 10870.2 | G160: 9354.95 | H160: 752.775 | I160: 29195.35
A161: 2012-01-07T13:00:00 | B161: 40915.54167 | C161: 1459.075 | D161: 1895.125 | E161: 4588.95 | F161: 10805.4 | G161: 9080.625 | H161: 735.475 | I161: 28564.65
A162: 2012-01-07T14:00:00 | B162: 40915.58333 | C162: 1434.25 | D162: 1882.175 | E162: 4566.225 | F162: 10621.8 | G162: 8992.075 | H162: 756 | I162: 28252.525
A163: 2012-01-07T15:00:00 | B163: 40915.625 | C163: 1410.475 | D163: 1865.975 | E163: 4560.85 | F163: 10665 | G163: 8797.675 | H163: 744.125 | I163: 28044.1
A164: 2012-01-07T16:00:00 | B164: 40915.66667 | C164: 1461.25 | D164: 1861.35 | E164: 4460.425 | F164: 10648.8 | G164: 8732.875 | H164: 691.2 | I164: 27855.9
A165: 2012-01-07T17:00:00 | B165: 40915.70833 | C165: 1658.9 | D165: 1827.075 | E165: 4668.85 | F165: 10972.8 | G165: 8812.8 | H165: 714.95 | I165: 28655.375
A166: 2012-01-07T18:00:00 | B166: 40915.75 | C166: 1938.6 | D166: 2068.75 | E166: 5065.2 | F166: 12166.2 | G166: 9907.925 | H166: 658.8 | I166: 31805.475
A167: 2012-01-07T19:00:00 | B167: 40915.79167 | C167: 1914.825 | D167: 2137.85 | E167: 5063.025 | F167: 12317.4 | G167: 10154.15 | H167: 642.6 | I167: 32229.85
A168: 2012-01-07T20:00:00 | B168: 40915.83333 | C168: 1865.15 | D168: 2044.425 | E168: 5037.125 | F168: 11907 | G168: 9856.075 | H168: 443.875 | I168: 31153.65
A169: 2012-01-07T21:00:00 | B169: 40915.875 | C169: 1680.475 | D169: 1942.375 | E169: 4852.45 | F169: 11496.6 | G169: 9497.525 | H169: 366.125 | I169: 29835.55
A170: 2012-01-07T22:00:00 | B170: 40915.91667 | C170: 1486.05 | D170: 1825.475 | E170: 4803.85 | F170: 10573.2 | G170: 9169.2 | H170: 354.225 | I170: 28212
A171: 2012-01-07T23:00:00 | B171: 40915.95833 | C171: 1386.725 | D171: 1683.725 | E171: 4573.8 | F171: 9757.8 | G171: 8652.95 | H171: 343.45 | I171: 26398.45
A172: 2012-01-08 | B172: 40916 | C172: 1272.25 | D172: 1602.175 | E172: 4470.125 | F172: 8942.4 | G172: 8162.675 | H172: 339.125 | I172: 24788.75
A173: 2012-01-08T01:00:00 | B173: 40916.04167 | C173: 1240.95 | D173: 1585.175 | E173: 4341.6 | F173: 8434.8 | G173: 7581.6 | H173: 331.55 | I173: 23515.675
A174: 2012-01-08T02:00:00 | B174: 40916.08333 | C174: 1165.325 | D174: 1541.45 | E174: 4203.35 | F174: 8056.8 | G174: 7395.85 | H174: 334.8 | I174: 22697.575
A175: 2012-01-08T03:00:00 | B175: 40916.125 | C175: 1148.05 | D175: 1509.025 | E175: 4123.425 | F175: 8062.2 | G175: 7296.475 | H175: 330.45 | I175: 22469.625
A176: 2012-01-08T04:00:00 | B176: 40916.16667 | C176: 1170.725 | D176: 1563.55 | E176: 4118.05 | F176: 8008.2 | G176: 7467.125 | H176: 333.725 | I176: 22661.375
A177: 2012-01-08T05:00:00 | B177: 40916.20833 | C177: 1221.5 | D177: 1707.2 | E177: 4174.2 | F177: 8186.4 | G177: 7534.075 | H177: 329.4 | I177: 23152.775
A178: 2012-01-08T06:00:00 | B178: 40916.25 | C178: 1361.85 | D178: 1722.325 | E178: 4248.7 | F178: 8483.4 | G178: 7899.125 | H178: 459 | I178: 24174.4
A179: 2012-01-08T07:00:00 | B179: 40916.29167 | C179: 1589.75 | D179: 1865.2 | E179: 3976.575 | F179: 9185.4 | G179: 8143.2 | H179: 538.9 | I179: 25299.025
A180: 2012-01-08T08:00:00 | B180: 40916.33333 | C180: 1668.625 | D180: 2066.3 | E180: 4070.5 | F180: 9536.4 | G180: 8700.475 | H180: 533.525 | I180: 26575.825
A181: 2012-01-08T09:00:00 | B181: 40916.375 | C181: 1814.4 | D181: 2203.2 | E181: 4531.675 | F181: 10481.4 | G181: 9339.825 | H181: 536.725 | I181: 28907.225
A182: 2012-01-08T10:00:00 | B182: 40916.41667 | C182: 1697.75 | D182: 2072.5 | E182: 4434.475 | F182: 10573.2 | G182: 9221.05 | H182: 546.475 | I182: 28545.45
A183: 2012-01-08T11:00:00 | B183: 40916.45833 | C183: 1457.975 | D183: 1966.4 | E183: 4191.475 | F183: 10486.8 | G183: 8756.65 | H183: 575.625 | I183: 27434.925
A184: 2012-01-08T12:00:00 | B184: 40916.5 | C184: 1385.625 | D184: 1912.95 | E184: 4014.35 | F184: 10422 | G184: 8620.55 | H184: 598.3 | I184: 26953.775
A185: 2012-01-08T13:00:00 | B185: 40916.54167 | C185: 1487.15 | D185: 1912.675 | E185: 3956.05 | F185: 10368 | G185: 8527.675 | H185: 600.475 | I185: 26852.025
A186: 2012-01-08T14:00:00 | B186: 40916.58333 | C186: 1459.075 | D186: 1916.725 | E186: 4016.525 | F186: 10384.2 | G186: 8745.875 | H186: 606.975 | I186: 27129.375
A187: 2012-01-08T15:00:00 | B187: 40916.625 | C187: 1466.625 | D187: 1885.425 | E187: 4002.475 | F187: 10254.6 | G187: 8458.55 | H187: 586.45 | I187: 26654.125
A188: 2012-01-08T16:00:00 | B188: 40916.66667 | C188: 1488.225 | D188: 1829.55 | E188: 3980.875 | F188: 10351.8 | G188: 8471.525 | H188: 582.1 | I188: 26704.075
A189: 2012-01-08T17:00:00 | B189: 40916.70833 | C189: 1786.3 | D189: 1953.175 | E189: 4052.15 | F189: 10616.4 | G189: 8698.325 | H189: 632.9 | I189: 27739.25
A190: 2012-01-08T18:00:00 | B190: 40916.75 | C190: 2009.875 | D190: 2131.1 | E190: 4586.75 | F190: 12447 | G190: 10106.625 | H190: 568.1 | I190: 31849.45
A191: 2012-01-08T19:00:00 | B191: 40916.79167 | C191: 1983.975 | D191: 2202.625 | E191: 4640.775 | F191: 12339 | G191: 10320.5 | H191: 456.825 | I191: 31943.7
A192: 2012-01-08T20:00:00 | B192: 40916.83333 | C192: 1908.35 | D192: 2095.75 | E192: 4531.675 | F192: 11977.2 | G192: 9974.85 | H192: 475.175 | I192: 30963
A193: 2012-01-08T21:00:00 | B193: 40916.875 | C193: 1747.425 | D193: 1997.475 | E193: 4362.125 | F193: 11156.4 | G193: 9599.05 | H193: 794.9 | I193: 29657.375
A194: 2012-01-08T22:00:00 | B194: 40916.91667 | C194: 1456.9 | D194: 1787.925 | E194: 4166.675 | F194: 10362.6 | G194: 8968.3 | H194: 838.075 | I194: 27580.475
A195: 2012-01-08T23:00:00 | B195: 40916.95833 | C195: 1254.95 | D195: 1592.75 | E195: 3735.725 | F195: 9477 | G195: 8190.725 | H195: 1206.375 | I195: 25457.525
A196: 2012-01-09 | B196: 40917 | C196: 1129.675 | D196: 1396.175 | E196: 3582.35 | F196: 8640 | G196: 7482.25 | H196: 1302.475 | I196: 23532.925
A197: 2012-01-09T01:00:00 | B197: 40917.04167 | C197: 1118.875 | D197: 1367.55 | E197: 3389.05 | F197: 8056.8 | G197: 7030.8 | H197: 1312.2 | I197: 22275.275
A198: 2012-01-09T02:00:00 | B198: 40917.08333 | C198: 1058.4 | D198: 1328.4 | E198: 3305.85 | F198: 7716.6 | G198: 6788.875 | H198: 1312.2 | I198: =SUM(C198:H198) -> 21510.325
A199: =A198+TIME(1,0,0) -> 2012-01-09T03:00:00 | B199: 40917.125 | C199: 1042.2 | D199: 1322.2 | E199: 3225.95 | F199: 7646.4 | G199: 6719.775 | H199: 1314.375 | I199: 21270.9
A200: 2012-01-09T04:00:00 | B200: 40917.16667 | C200: 1071.35 | D200: 1318.95 | E200: 3250.775 | F200: 7657.2 | G200: 6756.5 | H200: 1297.1 | I200: 21351.875
A201: 2012-01-09T05:00:00 | B201: 40917.20833 | C201: 1122.1 | D201: 1565.475 | E201: 3535.925 | F201: 8175.6 | G201: 7354.8 | H201: 1259.3 | I201: 23013.2
A202: 2012-01-09T06:00:00 | B202: 40917.25 | C202: 1526.05 | D202: 1813.05 | E202: 4202.275 | F202: 9757.8 | G202: 8823.6 | H202: 1284.1 | I202: 27406.875
... 4298 more rows

Sheet Viewer
D1: Enter # Days for chart | G1: Enter Chart title:
D2: 7 | G2: FLORIDA PUBLIC UTILITIES, NW DIVISION
S7: 1 | T7: =SERIES("Altha",'Northwest Hourly Data 2.xlsm'!DATES,'Northwest Hourly Data 2.xlsm'!Altha,1)
S8: 1 | T8: =SERIES("Blountstown",'Northwest Hourly Data 2.xlsm'!DATES,'Northwest Hourly Data 2.xlsm'!Blountstown,2)
E9: =G2&": "&TEXT(MIN(DATES),"m/d/yy hh:mm")&" to "&TEXT(MAX(DATES),"m/d/yy hh:mm") -> FLORIDA PUBLIC UTILITIES, NW DIVISION: 10/15/15 02:00 to 10/22/15 01:00 | M9: ****Always leave at least 1 box checked**** | S9: 1 | T9: =SERIES("Caverns Rd",'Northwest Hourly Data 2.xlsm'!DATES,'Northwest Hourly Data 2.xlsm'!Caverns,3)
S10: 1 | T10: =SERIES("Chipola",'Northwest Hourly Data 2.xlsm'!DATES,'Northwest Hourly Data 2.xlsm'!Chipola,4)
S11: 1 | T11: =SERIES("Marianna 1",'Northwest Hourly Data 2.xlsm'!DATES,'Northwest Hourly Data 2.xlsm'!Marianna1,5)
S12: 1 | T12: =SERIES("Family Dollar",'Northwest Hourly Data 2.xlsm'!DATES,'Northwest Hourly Data 2.xlsm'!Marianna2,6)
S13: 1 | T13: =SERIES("Total",'Northwest Hourly Data 2.xlsm'!DATES,'Northwest Hourly Data 2.xlsm'!Total,7)

Sheet Sheet2 (hidden)
A1: 33194 | B1: =24*Viewer!D2 -> 168
